bitfinex/quotes_SOLUSD_20241210
["timestamp","ask_amount","ask_price","bid_price","bid_amount"]
[1733805683608,0.86842545,215.95,215.85,23.776884]
[1733805683813,0.86842545,215.95,215.86,23.776884]
[1733805684027,0.8684168,215.98,215.86,23.776884]
[1733805684233,0.8684168,215.98,215.87,24.30784862]
[1733805685026,0.8684168,215.98,215.87,51.52956066]
[1733805685232,0.8684168,215.98,215.87,24.30784862]
[1733805686434,0.8684168,215.98,215.87,51.52956066]
[1733805686623,0.8684168,215.98,215.87,24.30784862]
[1733805687029,0.8684168,215.98,215.87,23.776884]
[1733805687919,0.8684168,215.98,215.88,24.30766327]
[1733805688115,6.0994,215.99,215.96,23.776884]
[1733805688317,0.86823503,216.05,215.96,51.52886081]
[1733805688538,0.86797209,216.05,215.96,51.52886081]
[1733805688727,0.86797209,216.05,215.98,23.776884]
[1733805689237,6.4366,216.06,215.99,0.53005994]
[1733805689625,6.4366,216.06,215.98,23.776884]
[1733805689979,6.4366,216.06,215.99,0.52974712]
[1733805690121,6.4366,216.06,215.98,23.776884]
[1733805690322,0.86791442,216.05,215.98,23.776884]
[1733805690534,0.86791442,216.05,215.97,24.30685282]
[1733805690844,6.4366,216.06,215.97,24.30685282]
[1733805691132,0.86793604,216.05,215.97,24.30685282]
[1733805691516,0.86795135,216.05,215.97,24.30685282]
[1733805691912,0.8679496,216.05,215.97,24.30685282]
[1733805692117,6.4366,216.06,215.97,24.30685282]
[1733805692530,0.86793968,216.05,215.97,24.30685282]
[1733805692854,6.4366,216.13,215.99,23.776884]
[1733805693050,0.86776208,216.12,216.01,23.776884]
[1733805695379,0.86776208,216.12,215.97,27.22171204]
[1733805696655,0.86776208,216.12,215.98,23.776884]
[1733805697234,0.86776208,216.12,215.98,50.99859604]
[1733805698330,0.86776208,216.12,215.99,27.22171204]
[1733805698552,0.86776208,216.12,216.0,27.22171204]
[1733805699058,0.86776208,216.12,216.0,23.776884]
[1733805699251,0.86776208,216.12,215.99,17.50816896]
[1733805699554,0.86776208,216.12,216.0,23.776884]
[1733805699755,0.86776208,216.12,216.03,23.776884]
[1733805700453,6.4366,216.13,216.05,23.776884]
[1733805703151,6.4935,216.18,216.06,23.776884]
[1733805703353,0.86752229,216.17,216.06,23.776884]
[1733805706349,20.0,216.15,216.06,23.776884]
[1733805706555,0.86769296,216.14,216.06,23.776884]
[1733805707068,0.86769296,216.14,216.05,23.776884]
[1733805707440,0.86769296,216.14,216.01,10.5]
[1733805709265,0.86769296,216.14,215.99,23.776884]
[1733805709466,0.86769296,216.14,215.99,40.75514825]
[1733805709870,0.86769296,216.14,215.99,41.2849607]
[1733805710065,0.86769296,216.14,216.0,16.97826425]
[1733805710272,0.86769296,216.14,216.02,16.97826425]
[1733805710472,0.86769296,216.14,216.03,23.776884]
[1733805711060,0.86769296,216.14,216.02,10.5]
[1733805712563,0.86769296,216.14,216.03,23.776884]
[1733805713567,20.0,216.15,216.03,23.776884]
[1733805713879,0.35146091,216.14,216.03,23.776884]
[1733805717681,8.3262053,216.18,216.04,16.97826425]
[1733805717682,0.35146091,216.17,216.04,16.97826425]
[1733805717875,0.35146091,216.17,216.05,51.94917335]
[1733805718190,6.4935,216.18,216.08,23.776884]
[1733805718761,0.35146091,216.17,216.08,23.776884]
[1733805722261,6.4935,216.18,216.08,23.776884]
[1733805722675,6.84496091,216.18,216.08,23.776884]
[1733805723888,6.4935,216.18,216.08,24.47085501]
[1733805724686,0.5800425,216.23,216.14,23.776884]
[1733805724887,0.5800425,216.23,216.16,23.776884]
[1733805725574,0.5800425,216.23,216.16,40.75514825]
[1733805725775,0.5800425,216.23,216.16,23.776884]
[1733805725971,0.5800425,216.23,216.15,23.776884]
[1733805726170,0.5800425,216.23,216.15,40.75514825]
[1733805726374,0.5800425,216.23,216.15,23.776884]
[1733805726592,0.5800425,216.23,216.15,40.75514825]
[1733805727168,0.5800425,216.23,216.17,40.75514825]
[1733805727474,0.5800425,216.23,216.19,40.75514825]
[1733805727691,0.5800425,216.23,216.21,40.75514825]
[1733805727887,0.5800425,216.23,216.21,23.776884]
[1733805728218,0.5800425,216.23,216.22,41.44873022]
[1733805729990,0.5800425,216.23,216.21,23.776884]
[1733805730209,0.5800425,216.23,216.2,23.776884]
[1733805730488,0.5800425,216.23,216.22,1.0]
[1733805731491,0.5800425,216.23,216.22,18.67177376]
[1733805731997,0.5800425,216.23,216.22,29.17177376]
[1733805732179,0.5800425,216.23,216.22,35.97039351]
[1733805732375,0.5800425,216.23,216.22,25.47039351]
[1733805732692,0.5800425,216.23,216.22,24.776884]
[1733805732882,0.5800425,216.23,216.22,1.0]
[1733805733996,0.5800425,216.23,216.22,24.776884]
[1733805734879,0.5800425,216.23,216.22,25.47042853]
[1733805735600,0.5800425,216.23,216.22,52.94869278]
[1733805735896,8.1203,216.36,216.26,20.0]
[1733805736194,1.6521,216.41,216.29,16.97826425]
[1733805736397,1.6521,216.41,216.31,16.97826425]
[1733805736704,1.6521,216.41,216.32,24.470034]
[1733805736900,1.6521,216.41,216.32,34.970034]
[1733805737216,1.6521,216.41,216.32,41.44829825]
[1733805737390,5.319232,216.41,216.32,41.44829825]
[1733805737579,5.319232,216.41,216.32,24.470034]
[1733805737773,5.319232,216.41,216.32,0.69315]
[1733805737994,0.35146091,216.4,216.28,10.5]
[1733805738186,0.35146091,216.4,216.3,23.776884]
[1733805738394,0.35146091,216.4,216.28,10.5]
[1733805738598,0.35146091,216.4,216.29,0.69335243]
[1733805739075,0.35146091,216.4,216.3,23.776884]
[1733805739498,0.35146091,216.4,216.28,10.5]
[1733805739676,20.0,216.36,216.23,0.4199575]
[1733805739884,0.35146091,216.35,216.23,0.4199575]
[1733805740211,0.35146091,216.35,216.23,1.1134887]
[1733805740375,0.35146091,216.35,216.24,10.5]
[1733805740576,0.35146091,216.38,216.24,10.5]
[1733805740985,0.35146091,216.38,216.26,23.776884]
[1733805741190,0.35146091,216.38,216.27,0.69335317]
[1733805741693,0.35146091,216.38,216.25,34.276884]
[1733805741899,0.35146091,216.38,216.25,51.25514825]
[1733805742082,0.35146091,216.38,216.26,0.6933842]
[1733805743595,6.4682,216.39,216.27,23.776884]
[1733805743900,5.319232,216.41,216.29,23.776884]
[1733805744081,5.319232,216.41,216.31,23.776884]
[1733805744500,3.667132,216.41,216.33,23.776884]
[1733805744898,3.667132,216.41,216.34,0.69315975]
[1733805745592,3.667132,216.41,216.33,34.276884]
[1733805746604,3.667132,216.41,216.35,40.75514825]
[1733805746810,3.667132,216.41,216.34,11.19313662]
[1733805746811,3.667132,216.41,216.37,23.776884]
[1733805747016,3.667132,216.41,216.38,0.69300495]
[1733805747319,2.667132,216.41,216.37,23.776884]
[1733805747908,2.667132,216.41,216.36,0.69300495]
[1733805748110,2.667132,216.41,216.36,23.776884]
[1733805749804,2.667132,216.41,216.38,23.776884]
[1733805750017,2.667132,216.41,216.39,0.69296286]
[1733805750243,2.667132,216.41,216.4,23.776884]
[1733805751524,2.667132,216.41,216.39,10.5]
[1733805751722,2.667132,216.41,216.36,2.5548]
[1733805752027,2.667132,216.41,216.36,1.0]
[1733805754312,2.667132,216.41,216.37,23.776884]
[1733805756726,2.667132,216.41,216.37,34.276884]
[1733805756923,2.667132,216.41,216.39,23.776884]
[1733805757433,2.667132,216.41,216.38,0.69300193]
[1733805758215,1.667132,216.41,216.38,0.69300193]
[1733805758734,1.667132,216.41,216.37,10.5]
[1733805758941,1.667132,216.41,216.36,1.0]
[1733805760718,1.667132,216.41,216.37,0.69309673]
[1733805761021,1.667132,216.41,216.36,1.0]
[1733805761215,1.667132,216.41,216.37,24.46992787]
[1733805761918,1.667132,216.41,216.37,34.96992787]
[1733805762717,1.667132,216.41,216.39,51.05845237]
[1733805762917,1.667132,216.41,216.4,24.46975112]
[1733805764425,1.667132,216.41,216.4,0.69286712]
[1733805765718,1.667132,216.41,216.4,1.69286712]
[1733805766248,1.667132,216.41,216.4,25.46975112]
[1733805767020,1.667132,216.41,216.4,54.36771949]
[1733805767918,0.000532,216.41,216.4,60.38391949]
[1733805768359,1.88016091,216.61,216.49,34.27688399]
[1733805768533,1.88016091,216.61,216.51,23.776884]
[1733805768722,1.88016091,216.61,216.52,0.69256756]
[1733805768943,1.88016091,216.61,216.47,23.776884]
[1733805769268,1.88016091,216.61,216.49,23.776884]
[1733805769434,1.88016091,216.61,216.51,23.776884]
[1733805769636,1.88016091,216.61,216.52,0.69257125]
[1733805770541,1.88016091,216.61,216.5,10.49999999]
[1733805772439,20.0,216.59,216.5,10.49999999]
[1733805772748,0.35146091,216.58,216.42,0.69267095]
[1733805772948,7.8037,216.56,216.41,11.49999999]
[1733805773159,0.35146091,216.55,216.41,12.19294055]
[1733805774474,20.0,216.53,216.41,1.69294056]
[1733805774788,0.35146091,216.52,216.41,1.0]
[1733805779247,20.0,216.53,216.52,0.64853909]
[1733805779443,20.0,216.53,216.41,1.0]
[1733805782449,1.6063,216.51,216.41,1.0]
[1733805784451,6.4135,216.5,216.41,1.0]
[1733805784760,10.0,216.55,216.36,1.0]
[1733805784761,20.0,216.45,216.36,1.0]
[1733805785077,20.0,216.43,216.36,1.0]
[1733805789449,19.0,216.43,216.36,1.0]
[1733805790668,8.0198,216.46,216.36,1.0]
[1733805794285,8.0198,216.46,216.37,23.776884]
[1733805795253,8.0198,216.46,216.29,45.4483]
[1733805795254,7.9511,216.39,216.22,1.0]
[1733805795454,20.0,216.36,216.22,1.0]
[1733805795672,0.69313287,216.35,216.22,1.0]
[1733805795875,20.69313287,216.35,216.22,1.0]
[1733805796050,20.0,216.34,216.22,1.0]
[1733805796251,0.69313287,216.33,216.22,1.0]
[1733805798355,20.0,216.36,216.22,1.0]
[1733805798356,0.69313287,216.35,216.22,1.0]
[1733805798555,20.0,216.34,216.22,1.0]
[1733805798757,0.69313287,216.33,216.22,1.0]
[1733805799377,20.0,216.32,216.22,1.0]
[1733805799710,0.69313287,216.31,216.22,1.0]
[1733805800787,20.69313287,216.31,216.22,1.0]
[1733805801482,0.69313287,216.31,216.22,1.0]
[1733805802401,0.69313287,216.34,216.22,1.0]
[1733805803510,20.0,216.33,216.22,1.0]
[1733805803826,0.69313287,216.32,216.22,1.0]
[1733805804185,20.69313287,216.32,216.22,1.0]
[1733805804792,0.69313287,216.32,216.22,1.0]
[1733805805084,0.69313287,216.35,216.22,1.0]
[1733805805883,0.69313287,216.37,216.22,1.0]
[1733805806206,0.69313287,216.37,216.23,1.4199575]
[1733805806985,20.0,216.36,216.23,1.4199575]
[1733805807180,0.69313287,216.35,216.23,1.4199575]
[1733805809404,20.0,216.36,216.35,0.30686713]
[1733805809603,20.0,216.36,216.23,1.4199575]
[1733805814114,9.85251411,216.39,216.24,51.364412]
[1733805814115,7.9511,216.39,216.24,51.364412]
[1733805814490,7.9511,216.39,216.24,24.47042775]
[1733805818610,7.9511,216.39,216.24,34.97042774]
[1733805819210,7.9511,216.39,216.27,50.67086825]
[1733805819416,7.9511,216.39,216.29,23.776884]
[1733805819611,7.9511,216.39,216.3,0.69319314]
[1733805819813,7.9511,216.39,216.28,10.49999999]
[1733805820013,7.9511,216.39,216.23,14.2219921]
[1733805820314,7.9511,216.39,216.24,23.776884]
[1733805820497,7.9511,216.39,216.25,0.69338202]
[1733805821017,7.9511,216.39,216.26,23.776884]
[1733805821498,7.9511,216.39,216.25,23.776884]
[1733805824018,7.9511,216.39,216.23,1.4199575]
[1733805824598,20.0,216.36,216.23,1.4199575]
[1733805828434,6.0994,216.33,216.23,1.4199575]
[1733805828601,20.0,216.3,216.23,1.4199575]
[1733805829003,21.6208,216.29,216.23,1.4199575]
[1733805829204,21.6208,216.29,216.22,1.0]
[1733805829205,20.0,216.25,216.08,0.6938269]
[1733805830209,1.6208,216.24,216.08,0.6938269]
[1733805830617,21.6208,216.24,216.07,23.776884]
[1733805830925,6.0994,216.23,216.07,23.776884]
[1733805831317,6.0994,216.23,216.06,10.49999999]
[1733805831511,6.0994,216.23,216.04,0.69402048]
[1733805831704,6.0994,216.23,216.05,0.69407573]
[1733805832104,6.0994,216.23,216.05,20.69407573]
[1733805832310,20.0,216.2,216.05,0.69407573]
[1733805832533,20.0,216.2,216.03,0.69408893]
[1733805832903,20.0,216.2,216.04,23.776884]
[1733805833925,6.0994,216.18,215.99,11.19415623]
[1733805836022,6.0994,216.18,216.0,23.776884]
[1733805836324,6.0994,216.18,216.01,0.69416801]
[1733805837544,6.0994,216.18,216.03,40.58250165]
[1733805837747,6.0994,216.18,216.05,23.776884]
[1733805837948,6.0994,216.18,216.06,0.69401582]
[1733805840027,6.0994,216.18,216.07,23.776884]
[1733805840322,6.0994,216.18,216.08,0.69389652]
[1733805840526,6.0994,216.18,216.09,23.776884]
[1733805840914,6.0994,216.18,216.1,0.69388907]
[1733805841722,6.0994,216.18,216.11,23.776884]
[1733805843310,6.0994,216.18,216.09,23.776884]
[1733805844526,6.0994,216.18,216.1,0.69388646]
[1733805845026,1.6208,216.19,216.08,20.69388727]
[1733805845240,1.6208,216.19,216.09,23.776884]
[1733805846030,1.6208,216.19,216.08,0.69388727]
[1733805847835,1.6208,216.19,216.08,23.776884]
[1733805849342,1.6208,216.19,216.07,31.19397434]
[1733805849343,1.6208,216.19,216.1,23.776884]
[1733805850423,1.6208,216.19,216.07,30.5]
[1733805850655,1.6208,216.19,216.07,10.5]
[1733805851321,1.6208,216.19,216.08,23.776884]
[1733805851520,1.6208,216.19,216.08,24.47088012]
[1733805851918,1.6208,216.19,216.1,1.0]
[1733805855421,1.6208,216.19,216.11,0.69387319]
[1733805855633,1.6208,216.19,216.11,20.69387319]
[1733805857627,1.6208,216.19,216.11,20.0]
[1733805857828,1.6208,216.19,216.1,1.0]
[1733805858524,1.6208,216.19,216.11,0.69387765]
[1733805862469,1.6208,216.19,216.11,1.69387765]
[1733805865454,1.6208,216.19,216.11,1.0]
[1733805866270,5.5012,216.18,216.11,1.0]
[1733805872978,1.6208,216.19,216.11,1.0]
[1733805873566,1.54757252,216.19,216.11,1.0]
[1733805874801,6.5012,216.28,216.18,23.776884]
[1733805874986,6.5012,216.28,216.2,16.80561765]
[1733805875285,6.5012,216.28,216.21,24.47040591]
[1733805875479,6.5012,216.38,216.21,0.69352191]
[1733805875678,6.5012,216.38,216.19,16.80561765]
[1733805875679,6.5012,216.38,216.19,0.69356168]
[1733805875886,6.5012,216.38,216.16,23.776884]
[1733805876097,6.5012,216.38,216.18,23.776884]
[1733805876464,1.5479,216.37,216.18,23.776884]
[1733805876665,11.5479,216.37,216.17,0.6936298]
[1733805876861,10.0,216.34,216.15,20.0]
[1733805877072,20.0,216.3,216.13,23.776884]
[1733805877301,20.0,216.3,216.14,0.69374916]
[1733805880107,8.0336,216.29,216.12,20.0]
[1733805885471,20.0,216.25,216.11,1.0]
[1733805885676,8.0951,216.25,216.11,1.0]
[1733805886177,20.0,216.22,216.11,1.0]
[1733805887069,6.5805,216.2,216.11,1.0]
[1733805887490,1.5146,216.19,216.11,1.0]
[1733805887689,1.5146,216.19,216.1,1.0]
[1733805887690,1.5146,216.19,216.1,0.3334]
[1733805887893,8.0951,216.15,215.95,27.99975625]
[1733805888099,20.0,216.12,215.95,0.6941386]
[1733805888391,6.5805,216.11,215.92,10.5]
[1733805888992,6.5805,216.11,215.93,0.69443393]
[1733805889904,6.5805,216.11,215.94,23.776884]
[1733805890429,6.5805,216.11,215.92,0.69443844]
[1733805890430,1.5146,216.1,215.92,0.69443844]
[1733805891595,20.0,216.08,215.94,20.0]
[1733805896932,6.5805,216.07,215.92,0.69443844]
[1733805897094,6.5805,216.07,215.91,24.3307327]
[1733805897491,6.5805,216.07,215.91,25.02525309]
[1733805899345,6.5805,216.07,215.91,24.3307327]
[1733805899501,1.85985653,216.08,215.91,0.5538487]
[1733805899502,20.0,216.01,215.91,0.5538487]
[1733805900924,1.5146,216.03,215.91,0.5538487]
[1733805902298,20.0,216.01,215.91,0.5538487]
[1733805902512,6.5805,215.99,215.91,0.5538487]
[1733805903110,1.5146,215.98,215.91,0.5538487]
[1733805904004,20.0,215.96,215.91,0.5538487]
[1733805904215,20.0,215.96,215.81,10.5]
[1733805904543,20.0,215.92,215.76,10.5]
[1733805904702,20.0,215.92,215.75,0.69481845]
[1733805904905,20.0,215.92,215.73,35.14241765]
[1733805905130,20.0,215.92,215.73,12.1072]
[1733805905344,20.0,215.92,215.73,1.6072]
[1733805905550,20.0,215.87,215.72,1.0]
[1733805905712,20.0,215.78,215.72,1.0]
[1733805905907,8.0951,215.86,215.72,1.0]
[1733805905908,20.0,215.77,215.72,1.0]
[1733805906117,10.0,215.84,215.72,1.0]
[1733805906118,1.84182131,215.84,215.72,1.0]
[1733805906321,20.0,215.83,215.72,1.0]
[1733805906516,8.0951,215.86,215.72,1.0]
[1733805906833,8.0951,215.86,215.72,1.69512537]
[1733805907030,8.0951,215.86,215.73,23.776884]
[1733805907209,8.0951,215.86,215.73,34.276884]
[1733805909107,8.0951,215.86,215.73,10.5]
[1733805910138,8.0951,215.86,215.74,23.776884]
[1733805910509,8.0951,215.86,215.73,23.776884]
[1733805911322,8.0951,215.86,215.72,1.0]
[1733805911323,20.0,215.83,215.72,1.0]
[1733805912443,20.0,215.8,215.72,1.0]
[1733805913250,20.0,215.78,215.72,1.0]
[1733805913824,1.82487194,215.83,215.72,2.0]
[1733805914030,8.0951,215.86,215.72,2.0]
[1733805916126,10.0,215.85,215.72,2.0]
[1733805916638,20.0,215.82,215.72,2.0]
[1733805916940,20.0,215.83,215.72,2.0]
[1733805917240,8.0951,215.86,215.72,2.0]
[1733805917544,8.0951,215.86,215.73,24.47204257]
[1733805917924,8.0951,215.86,215.73,23.776884]
[1733805918439,8.0951,215.86,215.83,1.0]
[1733805918938,6.5805,215.86,215.83,1.0]
[1733805920553,20.0,215.84,215.83,1.0]
[1733805920961,20.0,215.84,215.72,12.5]
[1733805921149,20.0,215.84,215.72,22.0]
[1733805921454,20.0,215.84,215.83,1.0]
[1733805921653,6.5805,215.86,215.83,1.0]
[1733805922661,3.39676981,215.92,215.83,1.0]
[1733805922662,7.8681,215.92,215.83,1.0]
[1733805923242,6.2951,215.92,215.83,21.0]
[1733805923650,6.2951,215.97,215.83,1.0]
[1733805923959,6.2951,215.97,215.83,21.0]
[1733805924170,6.2951,215.97,215.84,43.776884]
[1733805924371,6.2951,215.97,215.86,1.0]
[1733805924660,1.573,216.05,215.86,1.0]
[1733805924661,6.2951,216.04,215.87,24.47154465]
[1733805925134,6.2951,216.04,215.87,23.776884]
[1733805925559,6.2951,216.04,215.86,1.0]
[1733805925886,20.0,216.01,215.87,20.0]
[1733805926361,20.0,215.99,215.86,1.0]
[1733805927379,20.0,215.98,215.86,2.0]
[1733805927675,20.0,215.96,215.86,2.0]
[1733805928173,20.0,215.94,215.86,2.0]
[1733805928866,20.0,215.96,215.86,2.0]
[1733805929266,20.0,215.94,215.86,2.0]
[1733805930261,19.0,215.94,215.86,2.0]
[1733805930864,11.90494494,215.97,215.86,2.0]
[1733805931174,1.90494494,215.97,215.86,2.0]
[1733805931359,10.0,216.01,215.86,2.0]
[1733805931674,16.2951,216.04,215.86,2.0]
[1733805931675,10.0,216.03,215.86,2.0]
[1733805931864,10.0,216.02,215.86,2.0]
[1733805932176,6.2951,216.04,215.86,2.0]
[1733805932177,10.0,216.0,215.86,2.0]
[1733805932673,8.17563929,216.04,215.86,2.0]
[1733805932674,18.17563929,216.04,215.86,2.0]
[1733805932877,8.17563929,216.04,215.86,2.0]
[1733805933080,20.0,216.01,215.86,2.0]
[1733805933382,8.17563929,216.04,215.87,20.0]
[1733805934491,8.17563929,216.04,215.86,2.0]
[1733805934673,20.0,216.01,215.86,2.0]
[1733805934867,20.0,216.01,215.87,20.0]
[1733805935369,20.0,216.01,215.88,1.653]
[1733805935984,6.2951,216.04,215.89,20.0]
[1733805936199,6.2951,216.04,215.88,1.653]
[1733805937066,10.0,216.02,215.88,1.653]
[1733805937407,20.0,216.01,215.88,1.653]
[1733805938405,6.2951,216.04,215.88,1.653]
[1733805939303,6.2951,216.04,215.89,23.776884]
[1733805939472,6.3428,216.09,215.9,0.69456132]
[1733805939871,16.3428,216.09,215.9,0.69456132]
[1733805940071,16.3428,216.09,215.9,23.776884]
[1733805940072,18.21762474,216.09,215.9,23.776884]
[1733805940405,18.21762474,216.09,215.89,10.5]
[1733805940698,10.0,216.08,215.89,23.776884]
[1733805940899,20.0,216.05,215.89,23.776884]
[1733805941475,20.0,216.06,215.89,23.776884]
[1733805941883,20.0,216.06,215.88,1.653]
[1733805942201,20.0,216.04,215.88,1.653]
[1733805942782,20.0,216.0,215.86,2.0]
[1733805942977,30.0,216.0,215.86,2.0]
[1733805943212,20.0,215.96,215.86,2.0]
[1733805950338,20.0,215.94,215.86,2.0]
[1733805950554,20.0,215.92,215.86,2.0]
[1733805952011,20.0,215.9,215.86,2.0]
[1733805952414,20.0,215.9,215.83,1.0]
[1733805952619,26.1953,215.88,215.73,1.5365]
[1733805952811,20.0,215.87,215.73,1.5365]
[1733805953035,20.0,215.85,215.73,1.5365]
[1733805956333,20.0,215.85,215.72,2.0]
[1733805957145,20.0,215.83,215.72,2.0]
[1733805957723,20.0,215.81,215.72,2.0]
[1733805959035,20.0,215.83,215.72,2.0]
[1733805960123,20.0,215.81,215.72,2.0]
[1733805960540,20.0,215.77,215.72,2.0]
[1733805960740,20.0,215.77,215.7,0.5538487]
[1733805961245,18.74504766,215.77,215.7,0.5538487]
[1733805962231,18.74504766,215.77,215.57,1.6025]
[1733805962232,10.0,215.76,215.57,1.6025]
[1733805962533,18.74504766,215.77,215.57,1.6025]
[1733805962534,20.57074563,215.77,215.57,1.6025]
[1733805963423,20.0,215.73,215.57,1.6025]
[1733805963626,20.0,215.71,215.57,1.6025]
[1733805964165,20.0,215.67,215.57,1.6025]
[1733805967949,20.0,215.65,215.51,1.6025]
[1733805968539,20.0,215.59,215.48,0.5538487]
[1733805969071,26.4487,215.59,215.48,0.5538487]
[1733805969284,20.0,215.57,215.48,0.5538487]
[1733805969438,20.0,215.56,215.48,0.5538487]
[1733805970467,20.0,215.54,215.48,0.5538487]
[1733805970851,11.5668,215.58,215.39,7.6963]
[1733805970852,20.0,215.53,215.39,7.6963]
[1733805971162,20.0,215.53,215.39,1.6025]
[1733805971163,20.0,215.51,215.39,1.6025]
[1733805971366,20.0,215.43,215.25,1.6403]
[1733805971578,20.0,215.41,215.25,1.6403]
[1733805972074,23.776884,215.46,215.26,27.06091563]
[1733805972388,20.0,215.43,215.26,27.06091563]
[1733805972672,20.0,215.43,215.26,10.5]
[1733805972984,7.7904,215.38,215.21,0.69660894]
[1733805973157,232.05811426,215.24,214.94,12.1403]
[1733805973350,232.05811426,215.24,214.88,23.2686]
[1733805973351,20.0,215.13,214.95,30.69721381]
[1733805973558,232.05811426,215.14,214.85,11.0538487]
[1733805973559,20.0,215.11,214.86,0.69767606]
[1733805973871,0.69660894,215.1,214.85,0.5538487]
[1733805974176,10.0,215.0,214.85,0.5538487]
[1733805974351,10.0,214.96,214.85,0.5538487]
[1733805974552,10.0,214.96,214.58,13.87]
[1733805974553,255.83499826,215.05,214.71,1.89869366]
[1733805974554,10.69660894,214.95,214.71,1.89869366]
[1733805974751,0.69660894,214.95,214.71,1.89869366]
[1733805975259,23.776884,214.92,214.71,1.89869366]
[1733805975460,23.776884,214.88,214.71,1.89869366]
[1733805975645,20.0,214.85,214.71,1.89869366]
[1733805975848,0.69660894,214.84,214.7,1.6403]
[1733805976563,0.69660894,214.84,214.66,44.31523603]
[1733805976785,20.0,214.85,214.62,44.31523603]
[1733805976946,20.0,214.81,214.59,74.31523603]
[1733805977146,0.69660894,214.8,214.59,30.0]
[1733805977368,20.0,214.76,214.59,30.0]
[1733805977562,0.69660894,214.75,214.59,30.0]
[1733805977953,0.69660894,214.75,214.61,44.31523603]
[1733805978164,0.69660894,214.75,214.67,44.31523603]
[1733805978474,0.69660894,214.81,214.71,44.31523603]
[1733805978663,0.69660894,214.9,214.76,23.776884]
[1733805978863,0.69660894,214.99,214.81,44.31523603]
[1733805979070,0.69660894,214.99,214.83,44.31523603]
[1733805979270,0.69660894,215.04,214.86,23.776884]
[1733805979475,0.69660894,215.04,214.81,23.776884]
[1733805979476,20.0,215.03,214.81,23.776884]
[1733805979669,1.90364286,215.07,214.8,1.5413]
[1733805979670,10.0,214.99,214.8,1.5413]
[1733805979864,10.0,214.97,214.8,1.5413]
[1733805980096,10.0,214.92,214.7,6.3363]
[1733805980281,20.0,214.87,214.7,6.3363]
[1733805980470,20.0,214.85,214.68,1.5413]
[1733805980659,0.69660894,214.86,214.63,44.31523603]
[1733805980660,20.0,214.83,214.63,44.31523603]
[1733805980863,20.0,214.83,214.58,6.3363]
[1733805980864,43.776884,214.81,214.61,44.31523603]
[1733805981163,0.69660894,214.8,214.63,44.31523603]
[1733805981367,23.776884,214.79,214.61,44.31523603]
[1733805981564,20.0,214.76,214.65,44.31523603]
[1733805981800,20.0,214.76,214.67,44.31523603]
[1733805981962,0.69660894,214.75,214.67,44.31523603]
[1733805982163,20.0,214.81,214.65,44.31523603]
[1733805982394,0.69660894,214.8,214.7,44.31523603]
[1733805982920,0.69660894,214.91,214.74,44.31523603]
[1733805983261,0.69660894,214.91,214.72,68.09212003]
[1733805983563,0.69660894,214.91,214.65,10.0]
[1733805983564,0.69660894,214.91,214.7,44.31523603]
[1733805983767,0.69660894,214.91,214.63,30.0]
[1733805983768,10.0,214.91,214.67,23.776884]
[1733805983963,0.69660894,214.9,214.66,44.31523603]
[1733805984175,43.776884,214.85,214.66,44.31523603]
[1733805984374,20.0,214.8,214.62,44.31523603]
[1733805984574,0.69660894,214.79,214.62,44.31523603]
[1733805984914,0.69660894,214.79,214.7,44.31523603]
[1733805985207,23.24252794,215.14,214.7,44.31523603]
[1733805985208,0.69660894,214.94,214.71,0.69845089]
[1733805985407,0.69660894,214.94,214.72,44.31523603]
[1733805985778,0.69660894,214.94,214.74,44.31523603]
[1733805986112,0.69660894,214.94,214.76,44.31523603]